[Event "Titled Tuesday Blitz May 24 Early 2022"]
[White "Warchol, Kamil"]
[Black "Martinez, Shawn"]
[WhiteFideId "21858241"]
[BlackFideId "2039770"]
[WhiteElo "1951"]
[BlackElo "2174"]
[Result "1-0"]
[Round "11"]
[TimeControl "180+1"]
[Date "2022.05.25"]
[WhiteClock "0:00:05"]
[BlackClock "0:00:05"]

1. e4 {[%clk 0:03:00]}  c5 {[%clk 0:02:53]} 2. Nf3 {[%clk 0:03:00]}  e6 {[%clk 0:02:53]} 3. b3 {[%clk 0:02:58]}  a6 {[%clk 0:02:48]} 4. Bb2 {[%clk 0:02:56]}  Nc6 {[%clk 0:02:42]} 5. c4 {[%clk 0:02:51]}  d6 {[%clk 0:02:42]} 6. d4 {[%clk 0:02:48]}  cxd4 {[%clk 0:02:40]} 7. Nxd4 {[%clk 0:02:49]}  Nf6 {[%clk 0:02:40]} 8. Nc3 {[%clk 0:02:43]}  Bd7 {[%clk 0:02:38]} 9. Be2 {[%clk 0:02:38]}  Be7 {[%clk 0:02:37]} 10. O-O {[%clk 0:02:35]}  O-O {[%clk 0:02:36]} 11. Qd2 {[%clk 0:02:30]}  Rc8 {[%clk 0:02:35]} 12. Rfd1 {[%clk 0:02:28]}  Qc7 {[%clk 0:02:29]} 13. Rac1 {[%clk 0:02:24]}  Rfd8 {[%clk 0:02:23]} 14. f3 {[%clk 0:02:18]}  Be8 {[%clk 0:02:21]} 15. Kh1 {[%clk 0:02:17]}  d5 {[%clk 0:02:11]} 16. exd5 {[%clk 0:01:55]}  exd5 {[%clk 0:02:10]} 17. Nxc6 {[%clk 0:01:55]}  Bxc6 {[%clk 0:02:08]} 18. Nxd5 {[%clk 0:01:50]}  Nxd5 {[%clk 0:01:25]} 19. cxd5 {[%clk 0:01:44]}  Rxd5 {[%clk 0:01:23]} 20. Qc2 {[%clk 0:00:50]}  Rxd1+ {[%clk 0:01:19]} 21. Rxd1 {[%clk 0:00:51]}  Rd8 {[%clk 0:01:16]} 22. Rf1 {[%clk 0:00:38]}  Qf4 {[%clk 0:01:12]} 23. Bd3 {[%clk 0:00:36]}  h5 {[%clk 0:00:52]} 24. Bh7+ {[%clk 0:00:28]}  Kh8 {[%clk 0:00:48]} 25. Qf5 {[%clk 0:00:20]}  Qxf5 {[%clk 0:00:36]} 26. Bxf5 {[%clk 0:00:21]}  Rd2 {[%clk 0:00:32]} 27. Bc3 {[%clk 0:00:17]}  Re2 {[%clk 0:00:30]} 28. h3 {[%clk 0:00:13]}  Kg8 {[%clk 0:00:21]} 29. Rd1 {[%clk 0:00:12]}  Kf8 {[%clk 0:00:19]} 30. a4 {[%clk 0:00:11]}  g6 {[%clk 0:00:19]} 31. Bd3 {[%clk 0:00:09]}  Re3 {[%clk 0:00:19]} 32. Bd4 {[%clk 0:00:08]}  Re6 {[%clk 0:00:17]} 33. Bc4 {[%clk 0:00:08]}  Rd6 {[%clk 0:00:16]} 34. Be2 {[%clk 0:00:07]}  Rd8 {[%clk 0:00:13]} 35. Bf2 {[%clk 0:00:04]}  Rxd1+ {[%clk 0:00:12]} 36. Bxd1 {[%clk 0:00:05]}  Bb4 {[%clk 0:00:11]} 37. Kg1 {[%clk 0:00:05]}  Ke7 {[%clk 0:00:12]} 38. Kf1 {[%clk 0:00:05]}  Kd6 {[%clk 0:00:13]} 39. Ke2 {[%clk 0:00:06]}  Bd5 {[%clk 0:00:12]} 40. Kd3 {[%clk 0:00:05]}  b5 {[%clk 0:00:12]} 41. Bg3+ {[%clk 0:00:05]}  Kc6 {[%clk 0:00:11]} 42. axb5+ {[%clk 0:00:06]}  axb5 {[%clk 0:00:10]} 43. Kd4 {[%clk 0:00:06]}  Bc5+ {[%clk 0:00:10]} 44. Kc3 {[%clk 0:00:05]}  Bg1 {[%clk 0:00:09]} 45. Be5 {[%clk 0:00:04]}  Bf2 {[%clk 0:00:08]} 46. Bd4 {[%clk 0:00:04]}  Be1+ {[%clk 0:00:08]} 47. Kb2 {[%clk 0:00:03]}  b4 {[%clk 0:00:08]} 48. Be3 {[%clk 0:00:02]}  Bc3+ {[%clk 0:00:06]} 49. Kc2 {[%clk 0:00:02]}  Kd6 {[%clk 0:00:07]} 50. Bd2 {[%clk 0:00:02]}  Bxd2 {[%clk 0:00:06]} 51. Kxd2 {[%clk 0:00:03]}  Ke5 {[%clk 0:00:06]} 52. Ke3 {[%clk 0:00:04]}  g5 {[%clk 0:00:05]} 53. g3 {[%clk 0:00:04]}  f5 {[%clk 0:00:06]} 54. f4+ {[%clk 0:00:04]}  gxf4+ {[%clk 0:00:06]} 55. gxf4+ {[%clk 0:00:05]}  Kd6 {[%clk 0:00:05]} 56. Kd4 {[%clk 0:00:05]}  Bg2 {[%clk 0:00:06]} 57. h4 {[%clk 0:00:04]}  Bf1 {[%clk 0:00:05]} 58. Bxh5 {[%clk 0:00:04]}  Ke6 {[%clk 0:00:02]} 59. Bd1 {[%clk 0:00:03]}  Kf6 {[%clk 0:00:03]} 60. Kc5 {[%clk 0:00:02]}  Bd3 {[%clk 0:00:02]} 61. Kxb4 {[%clk 0:00:03]}  Be4 {[%clk 0:00:02]} 62. Kc5 {[%clk 0:00:03]}  Ke6 {[%clk 0:00:03]} 63. b4 {[%clk 0:00:04]}  Bb7 {[%clk 0:00:03]} 64. b5 {[%clk 0:00:04]}  Bg2 {[%clk 0:00:04]} 65. Kb6 {[%clk 0:00:04]}  Kd7 {[%clk 0:00:04]} 66. Bc2 {[%clk 0:00:03]}  Ke6 {[%clk 0:00:04]} 67. h5 {[%clk 0:00:03]}  Be4 {[%clk 0:00:04]} 68. h6 {[%clk 0:00:03]}  Kf6 {[%clk 0:00:02]} 69. Bxe4 {[%clk 0:00:04]}  fxe4 {[%clk 0:00:02]} 70. Kc7 {[%clk 0:00:03]}  e3 {[%clk 0:00:03]} 71. b6 {[%clk 0:00:03]}  e2 {[%clk 0:00:04]} 72. b7 {[%clk 0:00:04]}  e1=Q {[%clk 0:00:04]} 73. b8=Q {[%clk 0:00:04]}  Qc3+ {[%clk 0:00:04]} 74. Kb7 {[%clk 0:00:04]}  Qb4+ {[%clk 0:00:04]} 75. Ka8 {[%clk 0:00:04]}  Qa5+ {[%clk 0:00:04]} 76. Kb7 {[%clk 0:00:03]}  Qb5+ {[%clk 0:00:03]} 77. Kc7 {[%clk 0:00:03]}  Qc5+ {[%clk 0:00:03]} 78. Kd8 {[%clk 0:00:02]}  Qf8+ {[%clk 0:00:03]} 79. Kc7 {[%clk 0:00:02]}  Qc5+ {[%clk 0:00:04]} 80. Kd7 {[%clk 0:00:02]}  Qd5+ {[%clk 0:00:03]} 81. Qd6+ {[%clk 0:00:03]}  Qxd6+ {[%clk 0:00:03]} 82. Kxd6 {[%clk 0:00:03]}  Kg6 {[%clk 0:00:03]} 83. Ke7 {[%clk 0:00:03]}  Kxh6 {[%clk 0:00:03]} 84. f5 {[%clk 0:00:04]}  Kg7 {[%clk 0:00:04]} 85. f6+ {[%clk 0:00:04]}  Kg6 {[%clk 0:00:05]} 86. f7 {[%clk 0:00:05]}  Kh7 {[%clk 0:00:05]} 87. f8=Q {[%clk 0:00:05]} 1-0


[Site "https://www.chess.com"]

[Event "Titled Tuesday Blitz May 24 Early 2022"]
[White "Yaksin, Oleg"]
[Black "Sokolovsky, Yahli"]
[WhiteFideId "24105880"]
[BlackFideId "2820242"]
[WhiteElo "2256"]
[BlackElo "1770"]
[Result "1-0"]
[Round "11"]
[TimeControl "180+1"]
[Date "2022.05.24"]
[WhiteClock "0:00:17"]
[BlackClock "0:00:07"]

1. d4 {[%clk 0:02:57]}  d6 {[%clk 0:03:00]} 2. c4 {[%clk 0:02:58]}  e5 {[%clk 0:03:00]} 3. dxe5 {[%clk 0:02:57]}  dxe5 {[%clk 0:03:01]} 4. Qxd8+ {[%clk 0:02:58]}  Kxd8 {[%clk 0:03:01]} 5. Nc3 {[%clk 0:02:56]}  c6 {[%clk 0:03:01]} 6. b3 {[%clk 0:02:56]}  Kc7 {[%clk 0:03:00]} 7. Bb2 {[%clk 0:02:57]}  Be6 {[%clk 0:02:58]} 8. O-O-O {[%clk 0:02:57]}  Nd7 {[%clk 0:02:58]} 9. g3 {[%clk 0:02:56]}  f6 {[%clk 0:02:51]} 10. Bh3 {[%clk 0:02:53]}  Bxh3 {[%clk 0:02:51]} 11. Nxh3 {[%clk 0:02:54]}  Nh6 {[%clk 0:02:47]} 12. f3 {[%clk 0:02:50]}  Nf5 {[%clk 0:02:40]} 13. g4 {[%clk 0:02:46]}  Nd4 {[%clk 0:02:38]} 14. Rhf1 {[%clk 0:02:33]}  Bb4 {[%clk 0:02:34]} 15. e3 {[%clk 0:02:32]}  Bxc3 {[%clk 0:02:22]} 16. Bxc3 {[%clk 0:02:33]}  Ne2+ {[%clk 0:02:23]} 17. Kc2 {[%clk 0:02:33]}  Nxc3 {[%clk 0:02:24]} 18. Kxc3 {[%clk 0:02:34]}  Nc5 {[%clk 0:02:24]} 19. b4 {[%clk 0:02:13]}  Na4+ {[%clk 0:02:24]} 20. Kb3 {[%clk 0:02:13]}  Nb6 {[%clk 0:02:25]} 21. e4 {[%clk 0:01:46]}  Rad8 {[%clk 0:02:06]} 22. c5 {[%clk 0:01:41]}  Nc8 {[%clk 0:02:01]} 23. Ng1 {[%clk 0:01:14]}  h5 {[%clk 0:01:48]} 24. g5 {[%clk 0:00:32]}  fxg5 {[%clk 0:01:33]} 25. Nh3 {[%clk 0:00:32]}  Rxd1 {[%clk 0:01:26]} 26. Rxd1 {[%clk 0:00:32]}  g4 {[%clk 0:01:27]} 27. Ng5 {[%clk 0:00:30]}  gxf3 {[%clk 0:01:10]} 28. Ne6+ {[%clk 0:00:30]}  Kb8 {[%clk 0:01:09]} 29. Rf1 {[%clk 0:00:30]}  Re8 {[%clk 0:01:03]} 30. Nxg7 {[%clk 0:00:29]}  Rf8 {[%clk 0:00:55]} 31. Nf5 {[%clk 0:00:20]}  Kc7 {[%clk 0:00:55]} 32. Rxf3 {[%clk 0:00:19]}  Ne7 {[%clk 0:00:56]} 33. Kc4 {[%clk 0:00:18]}  Nxf5 {[%clk 0:00:53]} 34. Rxf5 {[%clk 0:00:18]}  Rxf5 {[%clk 0:00:53]} 35. exf5 {[%clk 0:00:18]}  Kd7 {[%clk 0:00:51]} 36. Kd3 {[%clk 0:00:18]}  Ke7 {[%clk 0:00:51]} 37. Ke4 {[%clk 0:00:18]}  Kf6 {[%clk 0:00:52]} 38. h4 {[%clk 0:00:19]}  b5 {[%clk 0:00:19]} 39. cxb6 {[%clk 0:00:17]}  axb6 {[%clk 0:00:20]} 40. a4 {[%clk 0:00:16]}  Ke7 {[%clk 0:00:08]} 41. Kxe5 {[%clk 0:00:16]}  Kd7 {[%clk 0:00:08]} 42. f6 {[%clk 0:00:16]}  c5 {[%clk 0:00:01]} 43. bxc5 {[%clk 0:00:16]}  bxc5 {[%clk 0:00:02]} 44. Kd5 {[%clk 0:00:16]}  c4 {[%clk 0:00:03]} 45. Kxc4 {[%clk 0:00:16]}  Ke6 {[%clk 0:00:03]} 46. a5 {[%clk 0:00:16]}  Kxf6 {[%clk 0:00:04]} 47. a6 {[%clk 0:00:17]}  Kf5 {[%clk 0:00:05]} 48. a7 {[%clk 0:00:17]}  Kg4 {[%clk 0:00:06]} 49. a8=Q {[%clk 0:00:18]}  Kxh4 {[%clk 0:00:07]} 50. Qh1+ {[%clk 0:00:17]} 1-0


[Site "https://www.chess.com"]

[Event "Titled Tuesday Blitz May 24 Early 2022"]
[White "Yang, Kaiqi"]
[Black "Lazavik, Denis"]
[WhiteFideId "8604398"]
[BlackFideId "13515110"]
[WhiteElo "2373"]
[BlackElo "2437"]
[Result "1-0"]
[Round "11"]
[TimeControl "180+1"]
[Date "2022.05.24"]
[WhiteClock "0:00:03"]
[BlackClock "0:00:09"]

1. d4 {[%clk 0:03:00]}  Nf6 {[%clk 0:02:59]} 2. c4 {[%clk 0:03:01]}  e6 {[%clk 0:02:59]} 3. Bf4 {[%clk 0:03:00]}  d5 {[%clk 0:02:55]} 4. cxd5 {[%clk 0:02:59]}  exd5 {[%clk 0:02:54]} 5. Nc3 {[%clk 0:02:59]}  c6 {[%clk 0:02:53]} 6. e3 {[%clk 0:02:59]}  Bf5 {[%clk 0:02:53]} 7. Nf3 {[%clk 0:02:51]}  Bd6 {[%clk 0:02:51]} 8. Bg3 {[%clk 0:02:43]}  O-O {[%clk 0:02:44]} 9. Qb3 {[%clk 0:02:43]}  Bxg3 {[%clk 0:02:40]} 10. hxg3 {[%clk 0:02:42]}  Qb6 {[%clk 0:02:39]} 11. Qxb6 {[%clk 0:02:24]}  axb6 {[%clk 0:02:39]} 12. Nh4 {[%clk 0:02:24]}  Bg6 {[%clk 0:02:35]} 13. Nxg6 {[%clk 0:02:22]}  hxg6 {[%clk 0:02:36]} 14. Bd3 {[%clk 0:02:21]}  Nbd7 {[%clk 0:02:35]} 15. Kd2 {[%clk 0:02:19]}  b5 {[%clk 0:02:34]} 16. a3 {[%clk 0:02:19]}  Rfe8 {[%clk 0:02:33]} 17. Rh4 {[%clk 0:02:12]}  Nb6 {[%clk 0:02:31]} 18. Rah1 {[%clk 0:02:11]}  Kf8 {[%clk 0:02:32]} 19. g4 {[%clk 0:01:52]}  g5 {[%clk 0:02:30]} 20. Rh8+ {[%clk 0:01:52]}  Ke7 {[%clk 0:02:30]} 21. Rxe8+ {[%clk 0:01:53]}  Rxe8 {[%clk 0:02:29]} 22. f3 {[%clk 0:01:53]}  Nc8 {[%clk 0:02:26]} 23. Ne2 {[%clk 0:01:37]}  Nd6 {[%clk 0:02:26]} 24. Ng3 {[%clk 0:01:37]}  g6 {[%clk 0:02:25]} 25. e4 {[%clk 0:01:04]}  dxe4 {[%clk 0:02:20]} 26. fxe4 {[%clk 0:01:02]}  Nxg4 {[%clk 0:02:09]} 27. e5 {[%clk 0:01:03]}  Nc4+ {[%clk 0:02:08]} 28. Bxc4 {[%clk 0:00:57]}  bxc4 {[%clk 0:02:09]} 29. Ne4 {[%clk 0:00:57]}  Rd8 {[%clk 0:02:04]} 30. Kc3 {[%clk 0:00:55]}  Rd5 {[%clk 0:01:51]} 31. Rh7 {[%clk 0:00:41]}  c5 {[%clk 0:01:48]} 32. Nxc5 {[%clk 0:00:34]}  Nxe5 {[%clk 0:01:47]} 33. Nxb7 {[%clk 0:00:28]}  Ng4 {[%clk 0:01:38]} 34. Nc5 {[%clk 0:00:21]}  Ne3 {[%clk 0:01:34]} 35. g3 {[%clk 0:00:17]}  Nf5 {[%clk 0:01:32]} 36. Kxc4 {[%clk 0:00:15]}  Rxd4+ {[%clk 0:01:32]} 37. Kc3 {[%clk 0:00:15]}  Rg4 {[%clk 0:01:30]} 38. a4 {[%clk 0:00:16]}  Rxg3+ {[%clk 0:01:29]} 39. Kb4 {[%clk 0:00:16]}  Rg4+ {[%clk 0:01:26]} 40. Ka3 {[%clk 0:00:13]}  Rc4 {[%clk 0:01:24]} 41. b4 {[%clk 0:00:12]}  g4 {[%clk 0:01:24]} 42. a5 {[%clk 0:00:12]}  g3 {[%clk 0:01:24]} 43. Rh1 {[%clk 0:00:11]}  Nd6 {[%clk 0:01:20]} 44. a6 {[%clk 0:00:11]}  f5 {[%clk 0:01:16]} 45. Kb3 {[%clk 0:00:10]}  Rf4 {[%clk 0:00:39]} 46. a7 {[%clk 0:00:10]}  Rf3+ {[%clk 0:00:39]} 47. Ka4 {[%clk 0:00:10]}  Nc8 {[%clk 0:00:39]} 48. Re1+ {[%clk 0:00:08]}  Kd8 {[%clk 0:00:11]} 49. Rd1+ {[%clk 0:00:05]}  Ke8 {[%clk 0:00:09]} 50. a8=Q {[%clk 0:00:03]} 1-0


[Site "https://www.chess.com"]

[Event "Titled Tuesday Blitz May 24 Early 2022"]
[White "Yeletsky, Ivan"]
[Black "Avinash, Ramesh"]
[WhiteFideId "24180327"]
[BlackFideId "45018340"]
[WhiteElo "2319"]
[BlackElo "1875"]
[Result "0-1"]
[Round "11"]
[TimeControl "180+1"]
[Date "2022.05.24"]
[WhiteClock "0:00:02"]
[BlackClock "0:00:47"]

1. e4 {[%clk 0:03:00]}  e6 {[%clk 0:02:58]} 2. d4 {[%clk 0:03:00]}  d5 {[%clk 0:02:58]} 3. Nc3 {[%clk 0:03:01]}  Nf6 {[%clk 0:02:58]} 4. e5 {[%clk 0:03:02]}  Nfd7 {[%clk 0:02:59]} 5. f4 {[%clk 0:03:02]}  c5 {[%clk 0:02:59]} 6. Nf3 {[%clk 0:03:03]}  Nc6 {[%clk 0:03:00]} 7. Be3 {[%clk 0:03:03]}  cxd4 {[%clk 0:03:01]} 8. Nxd4 {[%clk 0:03:03]}  Bc5 {[%clk 0:03:02]} 9. Qd2 {[%clk 0:03:04]}  Nxd4 {[%clk 0:03:02]} 10. Bxd4 {[%clk 0:03:04]}  Bxd4 {[%clk 0:03:02]} 11. Qxd4 {[%clk 0:03:05]}  Qb6 {[%clk 0:03:03]} 12. Qxb6 {[%clk 0:03:01]}  Nxb6 {[%clk 0:03:04]} 13. a4 {[%clk 0:03:02]}  Bd7 {[%clk 0:03:00]} 14. a5 {[%clk 0:03:02]}  Nc8 {[%clk 0:03:00]} 15. Ne2 {[%clk 0:02:51]}  a6 {[%clk 0:02:59]} 16. Nd4 {[%clk 0:02:51]}  Na7 {[%clk 0:02:59]} 17. Kd2 {[%clk 0:02:50]}  Nc6 {[%clk 0:03:00]} 18. Ke3 {[%clk 0:02:40]}  Ke7 {[%clk 0:02:46]} 19. c3 {[%clk 0:02:36]}  g5 {[%clk 0:02:44]} 20. g3 {[%clk 0:02:21]}  Rag8 {[%clk 0:02:43]} 21. Be2 {[%clk 0:02:09]}  h5 {[%clk 0:02:38]} 22. Raf1 {[%clk 0:01:59]}  Nxa5 {[%clk 0:02:33]} 23. f5 {[%clk 0:01:45]}  Nc6 {[%clk 0:02:29]} 24. Nxc6+ {[%clk 0:01:42]}  Bxc6 {[%clk 0:02:28]} 25. Kd4 {[%clk 0:01:43]}  h4 {[%clk 0:02:25]} 26. fxe6 {[%clk 0:01:27]}  fxe6 {[%clk 0:02:24]} 27. Bg4 {[%clk 0:01:27]}  Rc8 {[%clk 0:02:06]} 28. b3 {[%clk 0:01:15]}  a5 {[%clk 0:02:00]} 29. Rf6 {[%clk 0:01:11]}  Bd7 {[%clk 0:01:58]} 30. Rhf1 {[%clk 0:01:06]}  a4 {[%clk 0:01:57]} 31. Rf7+ {[%clk 0:00:58]}  Kd8 {[%clk 0:01:56]} 32. Rf8+ {[%clk 0:00:53]}  Kc7 {[%clk 0:01:53]} 33. Rxh8 {[%clk 0:00:47]}  Rxh8 {[%clk 0:01:52]} 34. bxa4 {[%clk 0:00:48]}  Ra8 {[%clk 0:01:46]} 35. Bd1 {[%clk 0:00:37]}  Bxa4 {[%clk 0:01:39]} 36. Rf7+ {[%clk 0:00:34]}  Kc6 {[%clk 0:01:39]} 37. Bg4 {[%clk 0:00:27]}  Bb3 {[%clk 0:01:36]} 38. Bxe6 {[%clk 0:00:23]}  Ra4+ {[%clk 0:01:35]} 39. Kd3 {[%clk 0:00:23]}  Bc4+ {[%clk 0:01:34]} 40. Kd2 {[%clk 0:00:08]}  Ra2+ {[%clk 0:01:34]} 41. Kd1 {[%clk 0:00:08]}  Rxh2 {[%clk 0:01:35]} 42. gxh4 {[%clk 0:00:08]}  gxh4 {[%clk 0:01:35]} 43. Bg4 {[%clk 0:00:05]}  Rg2 {[%clk 0:01:21]} 44. Rf4 {[%clk 0:00:05]}  Rg1+ {[%clk 0:01:12]} 45. Kd2 {[%clk 0:00:05]}  b5 {[%clk 0:01:11]} 46. e6 {[%clk 0:00:02]}  Rg2+ {[%clk 0:01:09]} 47. Ke3 {[%clk 0:00:02]}  Kd6 {[%clk 0:01:09]} 48. Bh3 {[%clk 0:00:01]}  Rg3+ {[%clk 0:01:00]} 49. Rf3 {[%clk 0:00:02]}  Rxf3+ {[%clk 0:00:49]} 50. Kxf3 {[%clk 0:00:02]}  d4 {[%clk 0:00:49]} 51. cxd4 {[%clk 0:00:03]}  Bxe6 {[%clk 0:00:50]} 52. Bf1 {[%clk 0:00:04]}  b4 {[%clk 0:00:47]} 53. Ke3 {[%clk 0:00:02]}  h3 {[%clk 0:00:47]} 0-1


[Site "https://www.chess.com"]

[Event "Titled Tuesday Blitz May 24 Early 2022"]
[White "Zemlyanskii, Ivan"]
[Black "Vajda, Levente"]
[WhiteFideId "24249971"]
[BlackFideId "1203975"]
[WhiteElo "1815"]
[BlackElo "2573"]
[Result "1-0"]
[Round "11"]
[TimeControl "180+1"]
[Date "2022.05.25"]
[WhiteClock "0:00:30"]
[BlackClock "0:00:13"]

1. d4 {[%clk 0:03:00]}  Nf6 {[%clk 0:02:58]} 2. c4 {[%clk 0:03:00]}  c5 {[%clk 0:02:58]} 3. d5 {[%clk 0:02:55]}  b5 {[%clk 0:02:58]} 4. Nf3 {[%clk 0:02:54]}  g6 {[%clk 0:02:57]} 5. Qc2 {[%clk 0:02:52]}  d6 {[%clk 0:02:55]} 6. e4 {[%clk 0:02:50]}  Bg7 {[%clk 0:02:56]} 7. cxb5 {[%clk 0:02:42]}  O-O {[%clk 0:02:56]} 8. a4 {[%clk 0:02:42]}  a6 {[%clk 0:02:56]} 9. Nc3 {[%clk 0:02:42]}  axb5 {[%clk 0:02:56]} 10. Bxb5 {[%clk 0:02:41]}  Na6 {[%clk 0:02:57]} 11. O-O {[%clk 0:02:38]}  Nb4 {[%clk 0:02:57]} 12. Qd1 {[%clk 0:02:34]}  e6 {[%clk 0:02:50]} 13. dxe6 {[%clk 0:02:19]}  Bxe6 {[%clk 0:02:50]} 14. Bf4 {[%clk 0:02:18]}  d5 {[%clk 0:02:49]} 15. exd5 {[%clk 0:02:10]}  Nfxd5 {[%clk 0:02:50]} 16. Be5 {[%clk 0:01:52]}  f6 {[%clk 0:02:34]} 17. Bg3 {[%clk 0:01:50]}  Bf7 {[%clk 0:02:21]} 18. Ne4 {[%clk 0:01:38]}  Qe7 {[%clk 0:02:03]} 19. Nd6 {[%clk 0:01:14]}  Rfd8 {[%clk 0:01:36]} 20. Nxf7 {[%clk 0:01:13]}  Qxf7 {[%clk 0:01:37]} 21. Bc4 {[%clk 0:01:11]}  Kh8 {[%clk 0:01:36]} 22. Qb3 {[%clk 0:01:11]}  Qb7 {[%clk 0:01:36]} 23. Rfd1 {[%clk 0:01:03]}  Nb6 {[%clk 0:01:20]} 24. Bb5 {[%clk 0:01:03]}  N6d5 {[%clk 0:01:12]} 25. h4 {[%clk 0:01:01]}  Qe7 {[%clk 0:00:31]} 26. Re1 {[%clk 0:01:00]}  Qf8 {[%clk 0:00:31]} 27. Rad1 {[%clk 0:00:58]}  Nb6 {[%clk 0:00:18]} 28. Rxd8 {[%clk 0:00:52]}  Qxd8 {[%clk 0:00:18]} 29. Qf7 {[%clk 0:00:49]}  Qf8 {[%clk 0:00:17]} 30. Qb7 {[%clk 0:00:33]}  Rb8 {[%clk 0:00:13]} 31. Qxb8 {[%clk 0:00:30]} 1-0


[Site "https://www.chess.com"]